[Event "FIDE Online Steinitz Memorial Open"]
[White "Svidler, Peter"]
[Black "Le, Quang Liem"]
[Site "Internet"]
[Round "3"]
[Annotator "RC"]
[Result "0-1"]
[Date "2020.05.15"]
[WhiteElo "2754"]
[BlackElo "2690"]
[PlyCount "72"]
[TimeControl "180+2"]

1. Nf3 Nf6 2. g3 {[%emt 0:0:6]} b6 {[%emt 0:0:4]} 3. Bg2 {[%emt 0:0:1]} Bb7 {[%emt 0:0:1]} 4. 0-0 {[%emt 0:0:1]} c5 {[%emt 0:0:4]} 5. d3 {[%emt 0:0:3]
} g6 {[%emt 0:0:7]} 6. e4 {[%emt 0:0:2]} Bg7 {[%emt 0:0:6]} 7. Re1 {[%emt 0:0:10]} 0-0 {[%emt 0:0:2]} 8. e5 {[%emt 0:0:9]} Ne8 {[%emt 0:0:6]
} 9. Bf4 {[%emt 0:0:12]} d6 {[%emt 0:0:8]} 10. e6 {[%emt 0:0:0]} Bxb2 {[%emt 0:0:16]} 11. Nbd2 {[%emt 0:0:4]} Bxa1 {[%emt 0:0:15]} 12. Qxa1 {[%emt 0:0:4]} f6 {[%emt 0:0:9]} 13. h4 {[%emt 0:0:6]} Ng7 {[%emt 0:0:0]} 14. Bh6 {[%emt 0:0:6]} Nc6 {[%emt 0:0:7]} 15. Ng5 {[%emt 0:0:22]} Qc8 {[%emt 0:0:12]} 16. Bxg7 {[%emt 0:0:47]} Kxg7 {[%emt 0:0:0]} 17. Ndf3 {[%emt 0:0:1]
} Nd8 {[%emt 0:0:40]} 18. h5 {[%emt 0:0:10]} h6 {[%emt 0:0:3]
} 19. Ne4 {[%emt 0:0:5]} g5 {[%emt 0:0:23]} 20. Bh3 {[%emt 0:0:9]} Bd5 {[%emt 0:0:32]
} 21. Nexg5 {[%emt 0:0:36]} hxg5 {[%emt 0:0:3]} 22. Nxg5 {[%emt 0:0:0]
} Rh8 {[%emt 0:0:3]} 23. Bg4 {[%emt 0:0:1]} Nc6 {[%emt 0:0:0]} 24. c4 {[%emt 0:0:2]} Nb4 {[%emt 0:0:10]} 25. cxd5 {[%emt 0:0:2]} Nc2 {[%emt 0:0:1]} 26. Qc1 {[%emt 0:0:1]} Nxe1 {[%emt 0:0:0]} 27. Nf7 {[%emt 0:0:1]
} Nxd3 {[%emt 0:0:2]} 28. h6+ {[%emt 0:0:2]} Kg8 {[%emt 0:0:0]} 29. Qc2 {[%emt 0:0:1]} Ne5 {[%emt 0:0:1]} 30. Nxe5 {[%emt 0:0:1]} Rxh6 {[%emt 0:0:2]} 31. Nf7 {[%emt 0:0:1]} Qf8 {[%emt 0:0:2]} 32. Bf5 {[%emt 0:0:3]
} Qg7 {[%emt 0:0:1]} 33. Qa4 {[%emt 0:0:2]} Rf8 {[%emt 0:0:0]} 34. Qd7 {[%emt 0:0:2]} Rh5 {[%emt 0:0:1]} 35. Be4 {[%emt 0:0:2]} f5 {[%emt 0:0:2]} 36. Bf3 {[%emt 0:0:1]} Qa1+ {[%emt 0:0:1]} 0-1

[Event "FIDE Online Steinitz Memorial Open"]
[White "Dubov, Daniil"]
[Black "Korobov, Anton"]
[Site "Internet"]
[Round "3"]
[Annotator "RC"]
[Result "1/2-1/2"]
[Date "2020.05.15"]
[WhiteElo "2720"]
[BlackElo "2667"]
[PlyCount "46"]
[TimeControl "180+2"]

1. d4 d5 2. c4 {[%emt 0:0:4]} c6 {[%emt 0:0:4]} 3. Nf3 {[%emt 0:0:2]} Nf6 {[%emt 0:0:1]} 4. Nc3 {[%emt 0:0:1]} e6 {[%emt 0:0:1]} 5. g3 {[%emt 0:0:0]} dxc4 {[%emt 0:0:2]} 6. Bg2 {[%emt 0:0:4]} Nbd7 {[%emt 0:0:2]} 7. 0-0 {[%emt 0:0:2]} Be7 {[%emt 0:0:1]} 8. e4 {[%emt 0:0:4]} 0-0 {[%emt 0:0:0]} 9. Bf4 {[%emt 0:0:0]} Re8 {[%emt 0:0:3]} 10. a4 {[%emt 0:0:4]} a5 {[%emt 0:0:1]
} 11. Qc2 {[%emt 0:0:4]} b6 {[%emt 0:0:8]} 12. Rad1 {[%emt 0:0:0]} Bb7 {[%emt 0:0:11]} 13. h4 {[%emt 0:0:3]} h6 {[%emt 0:0:16]} 14. Rfe1 {[%emt 0:0:1]} Rc8 {[%emt 0:0:6]} 15. Qc1 {[%emt 0:0:10]} Bf8 {[%emt 0:0:5]
} 16. Qc2 {[%emt 0:0:11]} Qe7 {[%emt 0:0:12]} 17. Bc1 {[%emt 0:0:0]} Qb4 {[%emt 0:0:8]} 18. Bd2 {[%emt 0:0:9]} Qb3 {[%emt 0:0:17]} 19. Qc1 {[%emt 0:0:2]} b5 {[%emt 0:0:1]} 20. Bf4 {[%emt 0:0:48]} Qb4 {[%emt 0:0:0]} 21. Bd2 {[%emt 0:0:9]} Qb3 {[%emt 0:0:7]} 22. Bf4 {[%emt 0:0:3]} Qb4 {[%emt 0:0:1]} 23. Bd2 {[%emt 0:0:16]} Qb3 {[%emt 0:0:2]} 1/2-1/2

[Event "FIDE Online Steinitz Memorial Open"]
[White "Xiong, Jeffery"]
[Black "Le, Quang Liem"]
[Site "Internet"]
[Round "4"]
[Annotator "RC"]
[Result "1-0"]
[Date "2020.05.15"]
[WhiteElo "2724"]
[BlackElo "2690"]
[PlyCount "79"]
[TimeControl "180+2"]

1. c4 Nf6 2. Nc3 {[%emt 0:0:4]} e5 {[%emt 0:0:4]} 3. Nf3 {[%emt 0:0:1]} Nc6 {[%emt 0:0:1]} 4. g3 {[%emt 0:0:0]} d5 {[%emt 0:0:2]} 5. cxd5 {[%emt 0:0:0]
} Nxd5 {[%emt 0:0:0]} 6. Bg2 {[%emt 0:0:1]} Nb6 {[%emt 0:0:0]} 7. 0-0 {[%emt 0:0:1]} Be7 {[%emt 0:0:1]} 8. a3 {[%emt 0:0:0]} 0-0 {[%emt 0:0:2]
} 9. b4 {[%emt 0:0:1]} Re8 {[%emt 0:0:1]} 10. b5 {[%emt 0:0:0]} Nd4 {[%emt 0:0:1]} 11. Nxe5 {[%emt 0:0:1]} Bf6 {[%emt 0:0:3]} 12. f4 {[%emt 0:0:1]} Bxe5 {[%emt 0:0:4]} 13. fxe5 {[%emt 0:0:0]} Rxe5 {[%emt 0:0:0]} 14. e3 {[%emt 0:0:1]} Nxb5 {[%emt 0:0:10]} 15. Ne4 {[%emt 0:0:1]} Nd6 {[%emt 0:0:18]} 16. Qc2 {[%emt 0:0:2]} Bf5 {[%emt 0:0:36]} 17. Rxf5 {[%emt 0:0:2]
} Nxf5 {[%emt 0:0:2]} 18. Bb2 {[%emt 0:0:1]} Qe7 {[%emt 0:0:0]} 19. Rf1 {[%emt 0:0:20]} c6 {[%emt 0:1:12]} 20. Bxe5 {[%emt 0:1:18]} Qxe5 {[%emt 0:0:0]} 21. Qb3 {[%emt 0:0:1]} Rf8 {[%emt 0:0:17]} 22. d4 {[%emt 0:0:16]
} Qe6 {[%emt 0:0:2]} 23. Qd3 {[%emt 0:0:2]} Re8 {[%emt 0:0:0]} 24. Kh1 {[%emt 0:0:8]} Nd6 {[%emt 0:0:8]} 25. Nxd6 {[%emt 0:0:21]} Qxd6 {[%emt 0:0:0]} 26. e4 {[%emt 0:0:0]} Rd8 {[%emt 0:0:1]} 27. Qb3 {[%emt 0:0:9]
} Qe6 {[%emt 0:0:1]} 28. d5 {[%emt 0:0:2]} cxd5 {[%emt 0:0:0]} 29. exd5 {[%emt 0:0:0]} Qd6 {[%emt 0:0:1]} 30. a4 {[%emt 0:0:0]} g6 {[%emt 0:0:1]} 31. a5 {[%emt 0:0:2]} Nd7 {[%emt 0:0:3]} 32. Qxb7 {[%emt 0:0:2]
} a6 {[%emt 0:0:5]} 33. Rc1 {[%emt 0:0:25]} Ne5 {[%emt 0:0:0]} 34. Qb6 {[%emt 0:0:5]} Kg7 {[%emt 0:0:6]} 35. Kg1 {[%emt 0:0:13]} Qa3 {[%emt 0:0:1]} 36. Rf1 {[%emt 0:0:2]} Re8 {[%emt 0:0:6]} 37. d6 {[%emt 0:0:0]} Nc4 {[%emt 0:0:1]} 38. Qd4+ {[%emt 0:0:2]} Kg8 {[%emt 0:0:11]} 39. Qxc4 {[%emt 0:0:3]} Qe3+ {[%emt 0:0:1]} 40. Kh1 {[%emt 0:0:1]} 1-0

[Event "FIDE Online Steinitz Memorial Open"]
[White "Mamedyarov, Shakhriyar"]
[Black "Svidler, Peter"]
[Site "Internet"]
[Round "4"]
[Annotator "RC"]
[Result "1-0"]
[Date "2020.05.15"]
[WhiteElo "2716"]
[BlackElo "2754"]
[PlyCount "71"]
[TimeControl "180+2"]

1. d4 Nf6 2. c4 {[%emt 0:0:4]} g6 {[%emt 0:0:4]} 3. Nf3 {[%emt 0:0:1]} Bg7 {[%emt 0:0:1]} 4. e3 {[%emt 0:0:1]} 0-0 {[%emt 0:0:2]} 5. Be2 {[%emt 0:0:2]
} c5 {[%emt 0:0:8]} 6. dxc5 {[%emt 0:0:2]} Na6 {[%emt 0:0:0]} 7. 0-0 {[%emt 0:0:3]} Nxc5 {[%emt 0:0:1]} 8. b4 {[%emt 0:0:10]} Nce4 {[%emt 0:0:23]} 9. Bb2 {[%emt 0:0:2]} a5 {[%emt 0:0:48]} 10. a3 {[%emt 0:0:0]} axb4 {[%emt 0:0:12]} 11. axb4 {[%emt 0:0:2]} Rxa1 {[%emt 0:0:0]} 12. Bxa1 {[%emt 0:0:1]} d5 {[%emt 0:0:1]} 13. c5 {[%emt 0:0:11]} Bg4 {[%emt 0:0:4]
} 14. Nbd2 {[%emt 0:0:12]} e6 {[%emt 0:0:16]} 15. h3 {[%emt 0:0:0]} Bxf3 {[%emt 0:0:3]} 16. Bxf3 {[%emt 0:0:13]} Qa8 {[%emt 0:0:4]} 17. Bxe4 {[%emt 0:0:7]} dxe4 {[%emt 0:0:33]} 18. Bxf6 {[%emt 0:0:2]} Bxf6 {[%emt 0:0:0]} 19. Nxe4 {[%emt 0:0:1]} Be5 {[%emt 0:0:2]} 20. Qc2 {[%emt 0:0:50]
} Rd8 {[%emt 0:0:5]} 21. f4 {[%emt 0:0:15]} Bg7 {[%emt 0:0:0]} 22. Rd1 {[%emt 0:0:2]} Rxd1+ {[%emt 0:0:6]} 23. Qxd1 {[%emt 0:0:0]} Qa3 {[%emt 0:0:4]} 24. Qd8+ {[%emt 0:0:9]} Bf8 {[%emt 0:0:1]} 25. Nf6+ {[%emt 0:0:0]
} Kg7 {[%emt 0:0:1]} 26. Qd4 {[%emt 0:0:1]} Kh8 {[%emt 0:0:0]} 27. Kh2 {[%emt 0:0:7]} h6 {[%emt 0:0:1]} 28. Qd8 {[%emt 0:0:13]} Kg7 {[%emt 0:0:2]} 29. Qd4 {[%emt 0:0:0]} Kh8 {[%emt 0:0:1]} 30. h4 {[%emt 0:0:0]} Qc1 {[%emt 0:0:5]} 31. Nd7+ {[%emt 0:0:25]} Bg7 {[%emt 0:0:2]} 32. Ne5 {[%emt 0:0:1]} Kh7 {[%emt 0:0:2]} 33. Qe4 {[%emt 0:0:7]} Qe1 {[%emt 0:0:2]
} 34. Nf3 {[%emt 0:0:1]} Qf2 {[%emt 0:0:2]} 35. b5 {[%emt 0:0:0]} f5 {[%emt 0:0:5]} 36. Qxe6 {[%emt 0:0:2]} 1-0

[Event "FIDE Online Steinitz Memorial Open"]
[White "Anton Guijarro, David"]
[Black "Dubov, Daniil"]
[Site "Internet"]
[Round "4"]
[Annotator "RC"]
[Result "1/2-1/2"]
[Date "2020.05.15"]
[WhiteElo "2590"]
[BlackElo "2720"]
[PlyCount "73"]
[TimeControl "180+2"]

1. Nf3 d5 2. b3 {[%emt 0:0:4]} Nf6 {[%emt 0:0:28]} 3. Bb2 {[%emt 0:0:2]} Nbd7 {[%emt 0:0:1]} 4. g3 {[%emt 0:0:12]} g6 {[%emt 0:0:2]} 5. c4 {[%emt 0:0:4]
} c6 {[%emt 0:0:2]} 6. Bg2 {[%emt 0:0:1]} Bg7 {[%emt 0:0:2]
} 7. 0-0 {[%emt 0:0:3]} 0-0 {[%emt 0:0:2]} 8. d4 {[%emt 0:0:9]} Ne4 {[%emt 0:0:2]
} 9. e3 {[%emt 0:0:9]} Ndf6 {[%emt 0:0:5]} 10. Ne5 {[%emt 0:0:0]} Bf5 {[%emt 0:0:7]} 11. f3 {[%emt 0:0:8]} Nd6 {[%emt 0:0:4]} 12. c5 {[%emt 0:0:8]} Bxb1 {[%emt 0:0:9]} 13. Rxb1 {[%emt 0:0:11]} Nf5 {[%emt 0:0:2]
} 14. Qe2 {[%emt 0:0:5]} Nd7 {[%emt 0:0:2]} 15. Nd3 {[%emt 0:0:0]} b6 {[%emt 0:0:14]} 16. b4 {[%emt 0:0:4]} a5 {[%emt 0:0:2]} 17. a3 {[%emt 0:0:23]} axb4 {[%emt 0:0:2]} 18. axb4 {[%emt 0:0:1]} bxc5 {[%emt 0:0:0]} 19. bxc5 {[%emt 0:0:1]} Qc7 {[%emt 0:0:15]} 20. Bh3 {[%emt 0:0:18]} e6 {[%emt 0:0:11]} 21. Ra1 {[%emt 0:0:19]} Rfb8 {[%emt 0:0:3]} 22. Bc3 {[%emt 0:0:4]
} h5 {[%emt 0:0:6]} 23. Kg2 {[%emt 0:0:22]} Rxa1 {[%emt 0:0:0]} 24. Rxa1 {[%emt 0:0:2]} Rb3 {[%emt 0:0:1]} 25. Bxf5 {[%emt 0:0:6]} exf5 {[%emt 0:0:5]} 26. Qc2 {[%emt 0:0:2]} Qb7 {[%emt 0:0:4]} 27. Ra2 {[%emt 0:0:2]
} Qb5 {[%emt 0:0:20]} 28. Rb2 {[%emt 0:0:1]} Rxb2 {[%emt 0:0:0]} 29. Bxb2 {[%emt 0:0:0]} Bh6 {[%emt 0:0:15]} 30. Bc1 {[%emt 0:0:3]} Nf8 {[%emt 0:0:9]} 31. h4 {[%emt 0:0:3]} Ne6 {[%emt 0:0:2]} 32. Bd2 {[%emt 0:0:4]
} Bg7 {[%emt 0:0:10]} 33. Bc1 {[%emt 0:0:3]} Bf6 {[%emt 0:0:0]} 34. Bb2 {[%emt 0:0:2]} Bg7 {[%emt 0:0:15]} 35. Bc1 {[%emt 0:0:1]} Bf6 {[%emt 0:0:1]} 36. Bb2 {[%emt 0:0:1]} Bg7 {[%emt 0:0:7]} 37. Bc1 {[%emt 0:0:1]
} 1/2-1/2

[Event "FIDE Online Steinitz Memorial Open"]
[White "Carlsen, Magnus"]
[Black "Anton Guijarro, David"]
[Site "Internet"]
[Round "5"]
[Annotator "RC"]
[Result "1-0"]
[Date "2020.05.15"]
[WhiteElo "2887"]
[BlackElo "2590"]
[PlyCount "83"]
[TimeControl "180+2"]

1. e4 e5 2. Nf3 {[%emt 0:0:4]} Nc6 {[%emt 0:0:4]} 3. Bb5 {[%emt 0:0:0]} a6 {[%emt 0:0:2]} 4. Ba4 {[%emt 0:0:1]} Nf6 {[%emt 0:0:1]} 5. d3 {[%emt 0:0:2]
} Bc5 {[%emt 0:0:3]} 6. c3 {[%emt 0:0:2]} d6 {[%emt 0:0:5]} 7. Nbd2 {[%emt 0:0:16]} 0-0 {[%emt 0:0:4]} 8. Nf1 {[%emt 0:0:2]} d5 {[%emt 0:0:7]
} 9. Qe2 {[%emt 0:0:6]} b5 {[%emt 0:0:8]} 10. Bb3 {[%emt 0:0:0]} d4 {[%emt 0:0:7]} 11. Ng3 {[%emt 0:0:6]} a5 {[%emt 0:0:33]} 12. a3 {[%emt 0:0:46]} Rb8 {[%emt 0:0:29]} 13. 0-0 {[%emt 0:0:18]} dxc3 {[%emt 0:0:0]} 14. bxc3 {[%emt 0:0:1]} b4 {[%emt 0:0:0]} 15. Ba4 {[%emt 0:0:1]} Rb6 {[%emt 0:0:29]} 16. Bxc6 {[%emt 0:0:32]} Rxc6 {[%emt 0:0:1]} 17. cxb4 {[%emt 0:0:4]
} axb4 {[%emt 0:0:3]} 18. axb4 {[%emt 0:0:4]} Bxb4 {[%emt 0:0:0]} 19. Nxe5 {[%emt 0:0:1]} Re6 {[%emt 0:0:3]} 20. Bb2 {[%emt 0:0:1]} c5 {[%emt 0:0:5]} 21. Nf5 {[%emt 0:0:20]} Rfe8 {[%emt 0:0:10]} 22. f4 {[%emt 0:0:1]
} Rb6 {[%emt 0:0:6]} 23. Ne3 {[%emt 0:0:4]} Ba6 {[%emt 0:0:0]} 24. N3c4 {[%emt 0:0:5]} Bxc4 {[%emt 0:0:1]} 25. Nxc4 {[%emt 0:0:2]} Rb8 {[%emt 0:0:2]} 26. Ra7 {[%emt 0:0:8]} Nd7 {[%emt 0:0:8]} 27. Bxg7 {[%emt 0:0:5]
} Kxg7 {[%emt 0:0:3]} 28. Qg4+ {[%emt 0:0:2]} Kf8 {[%emt 0:0:0]} 29. Rxd7 {[%emt 0:0:1]} Qf6 {[%emt 0:0:1]} 30. e5 {[%emt 0:0:8]} Qg6 {[%emt 0:0:1]} 31. Qf3 {[%emt 0:0:2]} Rbd8 {[%emt 0:0:2]} 32. f5 {[%emt 0:0:0]
} Qg5 {[%emt 0:0:2]} 33. Rxd8 {[%emt 0:0:14]} Rxd8 {[%emt 0:0:0]} 34. e6 {[%emt 0:0:2]} Bc3 {[%emt 0:0:2]} 35. Kh1 {[%emt 0:0:3]} Qf6 {[%emt 0:0:3]} 36. exf7 {[%emt 0:0:6]} Qxf7 {[%emt 0:0:1]} 37. h3 {[%emt 0:0:1]
} Bd4 {[%emt 0:0:1]} 38. Qe4 {[%emt 0:0:2]} Qe7 {[%emt 0:0:0]} 39. Qg4 {[%emt 0:0:5]} Qf7 {[%emt 0:0:3]} 40. f6 {[%emt 0:0:1]} Bxf6 {[%emt 0:0:2]} 41. Ne5 {[%emt 0:0:4]} Qg7 {[%emt 0:0:2]} 42. Qe6 {[%emt 0:0:1]
} 1-0

[Event "FIDE Online Steinitz Memorial Open"]
[White "Bu, Xiangzhi"]
[Black "Xiong, Jeffery"]
[Site "Internet"]
[Round "5"]
[Annotator "RC"]
[Result "1/2-1/2"]
[Date "2020.05.15"]
[WhiteElo "2760"]
[BlackElo "2724"]
[PlyCount "88"]
[TimeControl "180+2"]

1. Nf3 d5 2. d4 {[%emt 0:0:5]} Nf6 {[%emt 0:0:3]} 3. c4 {[%emt 0:0:1]} e6 {[%emt 0:0:1]} 4. Nc3 {[%emt 0:0:2]} dxc4 {[%emt 0:0:1]} 5. e4 {[%emt 0:0:0]} b5 {[%emt 0:0:1]} 6. e5 {[%emt 0:0:3]} Nd5 {[%emt 0:0:1]} 7. Nxb5 {[%emt 0:0:2]} Nb6 {[%emt 0:0:1]} 8. Be2 {[%emt 0:0:3]} Nc6 {[%emt 0:0:0]} 9. 0-0 {[%emt 0:0:1]} Be7 {[%emt 0:0:1]} 10. Qd2 {[%emt 0:0:3]} Qd7 {[%emt 0:0:33]} 11. Rd1 {[%emt 0:0:7]} Bb7 {[%emt 0:0:1]} 12. a4 {[%emt 0:0:0]} Nb4 {[%emt 0:0:41]} 13. Na3 {[%emt 0:0:22]} Bd5 {[%emt 0:0:13]} 14. a5 {[%emt 0:0:2]} Nc8 {[%emt 0:0:15]} 15. Nxc4 {[%emt 0:0:2]} Rb8 {[%emt 0:0:4]
} 16. Ne3 {[%emt 0:0:13]} Be4 {[%emt 0:0:1]} 17. b3 {[%emt 0:0:0]} 0-0 {[%emt 0:0:2]} 18. Ba3 {[%emt 0:0:3]} Rd8 {[%emt 0:0:1]} 19. Rac1 {[%emt 0:0:6]} Nc6 {[%emt 0:0:1]} 20. Bxe7 {[%emt 0:0:6]} N8xe7 {[%emt 0:0:0]
} 21. Qc3 {[%emt 0:0:5]} Bxf3 {[%emt 0:0:12]} 22. Bxf3 {[%emt 0:0:2]
} Nxd4 {[%emt 0:0:0]} 23. Kh1 {[%emt 0:0:38]} Rxb3 {[%emt 0:0:0]} 24. Qc5 {[%emt 0:0:22]} Rb5 {[%emt 0:0:14]} 25. Qxa7 {[%emt 0:0:3]} c5 {[%emt 0:0:2]} 26. Qxd7 {[%emt 0:0:6]} Rxd7 {[%emt 0:0:0]} 27. a6 {[%emt 0:0:1]
} Ra7 {[%emt 0:0:40]} 28. Bb7 {[%emt 0:0:3]} Nec6 {[%emt 0:0:0]} 29. Nc4 {[%emt 0:0:6]} Rbxb7 {[%emt 0:0:22]} 30. axb7 {[%emt 0:0:1]} Rxb7 {[%emt 0:0:0]} 31. Nd6 {[%emt 0:0:3]} Rb2 {[%emt 0:0:1]} 32. f4 {[%emt 0:0:8]
} Rc2 {[%emt 0:0:8]} 33. Rxc2 {[%emt 0:0:2]} Nxc2 {[%emt 0:0:0]} 34. Rc1 {[%emt 0:0:2]} N6b4 {[%emt 0:0:5]} 35. Ne4 {[%emt 0:0:6]} c4 {[%emt 0:0:2]} 36. Nd2 {[%emt 0:0:1]} c3 {[%emt 0:0:6]} 37. Ne4 {[%emt 0:0:2]
} h6 {[%emt 0:0:2]} 38. Nxc3 {[%emt 0:0:1]} Ne3 {[%emt 0:0:0]} 39. g3 {[%emt 0:0:3]} Nd3 {[%emt 0:0:1]} 40. Re1 {[%emt 0:0:7]} Nf2+ {[%emt 0:0:2]} 41. Kg1 {[%emt 0:0:1]} Nh3+ {[%emt 0:0:0]} 42. Kh1 {[%emt 0:0:1]
} Nf2+ {[%emt 0:0:0]} 43. Kg1 {[%emt 0:0:1]} Nh3+ {[%emt 0:0:0]} 44. Kh1 {[%emt 0:0:1]} Nf2+ {[%emt 0:0:1]} 1/2-1/2

[Event "FIDE Online Steinitz Memorial Open"]
[White "Svidler, Peter"]
[Black "Korobov, Anton"]
[Site "Internet"]
[Round "5"]
[Annotator "RC"]
[Result "1-0"]
[Date "2020.05.15"]
[WhiteElo "2754"]
[BlackElo "2667"]
[PlyCount "85"]
[TimeControl "180+2"]

1. Nf3 d5 2. g3 {[%emt 0:0:4]} g6 {[%emt 0:0:5]} 3. Bg2 {[%emt 0:0:2]} Bg7 {[%emt 0:0:1]} 4. 0-0 {[%emt 0:0:1]} Nf6 {[%emt 0:0:1]} 5. b3 {[%emt 0:0:3]
} Ne4 {[%emt 0:0:4]} 6. c3 {[%emt 0:0:16]} c5 {[%emt 0:0:7]} 7. Qc2 {[%emt 0:0:2]} 0-0 {[%emt 0:0:4]} 8. d3 {[%emt 0:0:1]} Nf6 {[%emt 0:0:7]
} 9. e4 {[%emt 0:0:7]} Nc6 {[%emt 0:0:4]} 10. e5 {[%emt 0:0:0]} Nd7 {[%emt 0:0:33]} 11. d4 {[%emt 0:0:6]} cxd4 {[%emt 0:0:5]} 12. cxd4 {[%emt 0:0:1]} Nb6 {[%emt 0:0:9]} 13. Be3 {[%emt 0:0:19]} Bf5 {[%emt 0:0:4]
} 14. Qd2 {[%emt 0:0:1]} Rc8 {[%emt 0:0:17]} 15. Nc3 {[%emt 0:0:0]} Nb4 {[%emt 0:0:14]} 16. Nh4 {[%emt 0:0:13]} Bd3 {[%emt 0:0:13]} 17. Rfc1 {[%emt 0:0:14]} Ba6 {[%emt 0:0:2]} 18. Ne2 {[%emt 0:0:35]} Nd3 {[%emt 0:0:21]
} 19. Rxc8 {[%emt 0:0:9]} Qxc8 {[%emt 0:0:0]} 20. Nc1 {[%emt 0:0:19]
} Nxc1 {[%emt 0:0:7]} 21. Rxc1 {[%emt 0:0:0]} Qd7 {[%emt 0:0:0]} 22. Bh6 {[%emt 0:0:2]} Rc8 {[%emt 0:0:3]} 23. Nf3 {[%emt 0:0:3]} Rxc1+ {[%emt 0:0:11]} 24. Qxc1 {[%emt 0:0:1]} Bd3 {[%emt 0:0:2]} 25. Bxg7 {[%emt 0:0:5]} Kxg7 {[%emt 0:0:1]} 26. Ng5 {[%emt 0:0:1]} f6 {[%emt 0:0:0]} 27. exf6+ {[%emt 0:0:3]} exf6 {[%emt 0:0:2]} 28. Nh3 {[%emt 0:0:1]} g5 {[%emt 0:0:8]} 29. f4 {[%emt 0:0:1]} h6 {[%emt 0:0:12]} 30. Nf2 {[%emt 0:0:1]
} Bf5 {[%emt 0:0:1]} 31. h3 {[%emt 0:0:5]} Qe7 {[%emt 0:0:0]} 32. g4 {[%emt 0:0:6]} Bg6 {[%emt 0:0:1]} 33. f5 {[%emt 0:0:1]} Bf7 {[%emt 0:0:1]
} 34. Bf3 {[%emt 0:0:7]} Qd6 {[%emt 0:0:5]} 35. Kg2 {[%emt 0:0:0]} a6 {[%emt 0:0:1]} 36. Qc5 {[%emt 0:0:3]} Qxc5 {[%emt 0:0:4]} 37. dxc5 {[%emt 0:0:1]} Nd7 {[%emt 0:0:0]} 38. b4 {[%emt 0:0:5]} a5 {[%emt 0:0:0]} 39. c6 {[%emt 0:0:2]} bxc6 {[%emt 0:0:1]} 40. bxa5 {[%emt 0:0:0]} Nb8 {[%emt 0:0:3]} 41. Be2 {[%emt 0:0:4]} c5 {[%emt 0:0:1]} 42. Bb5 {[%emt 0:0:2]
} Nc6 {[%emt 0:0:1]} 43. Bxc6 {[%emt 0:0:2]} 1-0

[Event "FIDE Online Steinitz Memorial Open"]
[White "Dubov, Daniil"]
[Black "Grischuk, Alexander"]
[Site "Internet"]
[Round "5"]
[Annotator "RC"]
[Result "1-0"]
[Date "2020.05.15"]
[WhiteElo "2720"]
[BlackElo "2765"]
[PlyCount "101"]
[TimeControl "180+2"]

1. e4 c5 2. Nf3 {[%emt 0:0:5]} d6 {[%emt 0:0:3]} 3. d4 {[%emt 0:0:0]} cxd4 {[%emt 0:0:0]} 4. Nxd4 {[%emt 0:0:1]} Nf6 {[%emt 0:0:1]} 5. Nc3 {[%emt 0:0:1]
} a6 {[%emt 0:0:0]} 6. Bg5 {[%emt 0:0:1]} e6 {[%emt 0:0:1]} 7. f4 {[%emt 0:0:2]} Nbd7 {[%emt 0:0:1]} 8. Qf3 {[%emt 0:0:6]} Qc7 {[%emt 0:0:1]
} 9. 0-0-0 {[%emt 0:0:2]} b5 {[%emt 0:0:1]} 10. Bxf6 {[%emt 0:0:15]
} Nxf6 {[%emt 0:0:13]} 11. e5 {[%emt 0:0:1]} Bb7 {[%emt 0:0:0]} 12. Qh3 {[%emt 0:0:25]} dxe5 {[%emt 0:0:14]} 13. Ncxb5 {[%emt 0:0:3]} Qb6 {[%emt 0:0:44]} 14. fxe5 {[%emt 0:0:6]} Ne4 {[%emt 0:0:1]} 15. Qb3 {[%emt 0:0:24]
} Bc5 {[%emt 0:0:34]} 16. Nd6+ {[%emt 0:0:3]} Nxd6 {[%emt 0:0:0]} 17. Qxb6 {[%emt 0:0:1]} Bxb6 {[%emt 0:0:0]} 18. exd6 {[%emt 0:0:0]} 0-0 {[%emt 0:0:17]} 19. c4 {[%emt 0:0:17]} Rfd8 {[%emt 0:0:10]} 20. b4 {[%emt 0:0:6]} Rxd6 {[%emt 0:0:12]} 21. c5 {[%emt 0:0:2]} Rc8 {[%emt 0:0:0]} 22. Bc4 {[%emt 0:0:6]} Bxc5 {[%emt 0:0:3]} 23. bxc5 {[%emt 0:0:2]} Rxc5 {[%emt 0:0:1]} 24. Nc2 {[%emt 0:0:1]} Rxd1+ {[%emt 0:0:14]} 25. Rxd1 {[%emt 0:0:3]} g5 {[%emt 0:0:2]} 26. Bxe6 {[%emt 0:0:13]} Bxg2 {[%emt 0:0:0]} 27. Rd8+ {[%emt 0:0:5]} Kg7 {[%emt 0:0:1]} 28. Rd7 {[%emt 0:0:1]} Be4 {[%emt 0:0:3]} 29. Rxf7+ {[%emt 0:0:3]} Kg6 {[%emt 0:0:1]} 30. Rf2 {[%emt 0:0:0]
} h5 {[%emt 0:0:1]} 31. Bf7+ {[%emt 0:0:12]} Kh6 {[%emt 0:0:0]} 32. Bb3 {[%emt 0:0:5]} g4 {[%emt 0:0:2]} 33. Kd2 {[%emt 0:0:2]} Kg5 {[%emt 0:0:8]} 34. Nd4 {[%emt 0:0:5]} Kh4 {[%emt 0:0:5]} 35. Rf4 {[%emt 0:0:23]
} Bb1 {[%emt 0:0:12]} 36. Rf1 {[%emt 0:0:19]} Be4 {[%emt 0:0:0]} 37. Rf2 {[%emt 0:0:10]} a5 {[%emt 0:0:3]} 38. Ke3 {[%emt 0:0:3]} Bb1 {[%emt 0:0:2]} 39. Kf4 {[%emt 0:0:4]} a4 {[%emt 0:0:1]} 40. Be6 {[%emt 0:0:0]} a3 {[%emt 0:0:7]} 41. Rd2 {[%emt 0:0:3]} Rc1 {[%emt 0:0:2]} 42. Rf2 {[%emt 0:0:8]} Re1 {[%emt 0:0:2]} 43. Bf5 {[%emt 0:0:4]} Bxf5 {[%emt 0:0:1]
} 44. Nxf5+ {[%emt 0:0:0]} Kh3 {[%emt 0:0:1]} 45. Ng3 {[%emt 0:0:3]
} h4 {[%emt 0:0:1]} 46. Ne4 {[%emt 0:0:1]} Rxe4+ {[%emt 0:0:0]} 47. Kxe4 {[%emt 0:0:1]} g3 {[%emt 0:0:0]} 48. hxg3 {[%emt 0:0:3]} hxg3 {[%emt 0:0:0]} 49. Rf3 {[%emt 0:0:6]} Kh2 {[%emt 0:0:2]} 50. Rxa3 {[%emt 0:0:2]
} g2 {[%emt 0:0:0]} 51. Ra8 {[%emt 0:0:1]} 1-0

[Event "FIDE Online Steinitz Memorial Open"]
[White "Le, Quang Liem"]
[Black "Mamedyarov, Shakhriyar"]
[Site "Internet"]
[Round "5"]
[Annotator "ChessBase"]
[Result "0-1"]
[Date "2020.05.15"]
[WhiteElo "2690"]
[BlackElo "2716"]
[PlyCount "74"]
[TimeControl "180+2"]

1. c4 e5 2. Nc3 {[%emt 0:0:5]} Nf6 {[%emt 0:0:5]} 3. Nf3 {[%emt 0:0:1]} Nc6 {[%emt 0:0:5]} 4. e3 {[%emt 0:0:1]} Bb4 {[%emt 0:0:6]} 5. Qc2 {[%emt 0:0:1]
} Bxc3 {[%emt 0:0:7]} 6. bxc3 {[%emt 0:0:0]} d6 {[%emt 0:0:0]} 7. d3 {[%emt 0:0:2]} 0-0 {[%emt 0:0:4]} 8. Be2 {[%emt 0:0:2]} h6 {[%emt 0:0:6]
} 9. 0-0 {[%emt 0:0:15]} a6 {[%emt 0:0:3]} 10. Rb1 {[%emt 0:0:0]} Rb8 {[%emt 0:0:2]} 11. a4 {[%emt 0:0:7]} a5 {[%emt 0:0:7]} 12. e4 {[%emt 0:0:6]} b6 {[%emt 0:0:1]} 13. Ne1 {[%emt 0:0:10]} Nh7 {[%emt 0:0:0]} 14. f4 {[%emt 0:0:12]} exf4 {[%emt 0:0:5]} 15. Bxf4 {[%emt 0:0:0]} f5 {[%emt 0:0:2]} 16. exf5 {[%emt 0:0:33]} Bxf5 {[%emt 0:0:2]} 17. Qd2 {[%emt 0:0:1]
} Ne5 {[%emt 0:0:8]} 18. Nc2 {[%emt 0:0:2]} Qh4 {[%emt 0:0:0]} 19. Ne3 {[%emt 0:0:30]} Be6 {[%emt 0:0:36]} 20. Bg3 {[%emt 0:0:25]} Qg5 {[%emt 0:0:1]} 21. d4 {[%emt 0:0:7]} Ng4 {[%emt 0:0:10]} 22. Bxg4 {[%emt 0:0:3]
} Bxg4 {[%emt 0:0:0]} 23. h4 {[%emt 0:0:4]} Qh5 {[%emt 0:0:0]} 24. Nd5 {[%emt 0:0:6]} Rxf1+ {[%emt 0:0:24]} 25. Rxf1 {[%emt 0:0:2]} Be6 {[%emt 0:0:1]} 26. Nxc7 {[%emt 0:0:29]} Bxc4 {[%emt 0:0:1]} 27. Re1 {[%emt 0:0:2]
} Rd8 {[%emt 0:0:11]} 28. Qb2 {[%emt 0:0:6]} Qg4 {[%emt 0:0:0]} 29. Re3 {[%emt 0:0:3]} Nf6 {[%emt 0:0:3]} 30. Qxb6 {[%emt 0:0:1]} Qd1+ {[%emt 0:0:2]} 31. Re1 {[%emt 0:0:2]} Qd3 {[%emt 0:0:1]} 32. Nd5 {[%emt 0:0:4]
} Rf8 {[%emt 0:0:7]} 33. Ne7+ {[%emt 0:0:1]} Kh7 {[%emt 0:0:0]} 34. Qxd6 {[%emt 0:0:0]} Qxc3 {[%emt 0:0:4]} 35. Qe5 {[%emt 0:0:4]} Qd3 {[%emt 0:0:3]} 36. h5 {[%emt 0:0:11]} Ng4 {[%emt 0:0:2]} 37. Qd6 {[%emt 0:0:4]
} Rf1+ {[%emt 0:0:3]} 0-1